Cogmind - Beta 10.2 @@@ ROGUE MODE // 2022.01.01 @ 20:00:01 Player: Inverisimilidude Result: Self-destructed Performance ------------- Evolutions (1) 500 Regions Visited (3) 600 Robots Destroyed (17) 85 Value Destroyed (377) 377 Prototype IDs (0) 0 Alien Tech Used (0) 0 Bonus (0) 0 TOTAL SCORE: 1562 Bonus ------- None Cogmind --------- Core Integrity 369/400 Matter 102/300 Energy 125/125 System Corruption 0% Temperature Cool (0) Movement Walking (120) Location -9/Materials Parts ------- > --- POWER (2) -------- Light Ion Engine > --- PROPULSION (2) --- Aluminum Leg Aluminum Leg > --- UTILITY (3) ------ Small Storage Unit > --- WEAPON (2) ------- Assault Rifle Mini Grenade Launcher > --- INVENTORY (6) ---- Light Ion Engine Light Treads Light Treads Wheel Small Laser Assault Rifle Peak State ------------ > --- POWER ------------ Light Ion Engine > --- PROPULSION ------- Aluminum Leg Aluminum Leg > --- UTILITY ---------- Small Storage Unit > --- WEAPON ----------- Assault Rifle Mini Grenade Launcher > --- INVENTORY -------- Light Ion Engine Light Treads Light Treads Wheel Small Laser Assault Rifle [Rating: 7] Favorites ----------- Power Light Ion Engine Engine Light Ion Engine Propulsion Aluminum Leg Leg Aluminum Leg Utility Small Storage Unit Storage Small Storage Unit Weapon Assault Rifle Energy Gun Small Laser Ballistic Gun Assault Rifle Launcher Mini Grenade Launcher Build | -11 -10 -10 -9 ------- Run | Scr Mat Min Mat Slots Evolved 2 | . . . 2 Power 1 | . . . 1 Propulsion . | . . . . Utility 1 | . . . 1 Weapon . | . . . . Parts Attached 7 | 6 1 . . Power 1 | 1 . . . Engine 1 | 1 . . . Core . | . . . . Reactor . | . . . . Propulsion 2 | 2 . . . Treads . | . . . . Leg 2 | 2 . . . Wheel . | . . . . Hover . | . . . . Flight . | . . . . Utility 1 | 1 . . . Device . | . . . . Storage 1 | 1 . . . Processor . | . . . . Hackware . | . . . . Protection . | . . . . Artifact . | . . . . Weapon 3 | 2 1 . . Energy Gun 1 | 1 . . . Energy Cannon . | . . . . Ballistic Gun 1 | 1 . . . Ballistic Cannon . | . . . . Launcher 1 | . 1 . . Special Weapon . | . . . . Impact Weapon . | . . . . Slashing Weapon . | . . . . Piercing Weapon . | . . . . Special Melee Weapon . | . . . . Unidentified Prototypes . | . . . . Parts Lost . | . . . . Power . | . . . . Propulsion . | . . . . Utility . | . . . . Weapon . | . . . . Highest Loss Streak . | . . . . Average Slot Usage (%) 83 | . 85 85 66 Engine 13 | . 14 14 11 Leg 27 | . 28 28 22 Storage 13 | . 14 14 11 Energy Gun 5 | . 8 . . Ballistic Gun 13 | . 14 14 11 Launcher 8 | . 5 14 11 Naked Turns . | . . . . Heaviest Build 10 | 10 10 10 10 Greatest Support 20 | 20 20 20 20 Greatest Overweight (x) 3 | 3 . . . Average Overweight (x) . | . . . . Largest Inventory Capacity 6 | 6 6 6 6 Average Capacity 5 | 5 6 6 6 Most Carried 6 | 6 6 6 6 Average Carried 5 | 2 6 6 6 Final Capacity 6 | 6 6 6 6 Final Carried 6 | 6 6 6 6 Class Distribution -------------------- 100% | Mutant Dominant Class ---------------- Mutant | -10/Materials Mutant | -10/Mines Mutant | -9/Materials Resources | -11 -10 -10 -9 ----------- Run | Scr Mat Min Mat Matter Collected 298 | 218 51 29 . Remotely . | . . . . Salvage Created 261 | . 128 133 . Parts 21 | . 9 12 . Haulers Intercepted . | . . . . Recyclers Shooed 1 | . 1 . . Parts Field Recycled . | . . . . Retrieved Matter . | . . . . Parts Self-Destructed . | . . . . Prevented . | . . . . Kills | -11 -10 -10 -9 ------- Run | Scr Mat Min Mat Combat Hostiles Destroyed 16 | . 8 8 . Guns 4 | . 3 1 . AOE 12 | . 5 7 . Classes Destroyed 3 | . 3 . . Recycler 1 | . 1 . . Swarmer 9 | . 6 3 . Grunt 7 | . 2 5 . Best Kill Streak 6 | . 6 6 . Combat Bots Only 6 | . 5 6 . Max Kills in Single Turn 2 | . 2 2 . Gunslinging . | . . . . Exploded 2 | . 2 2 . Melee . | . . . . Uniques/NPCs Destroyed . | . . . . Combat | -11 -10 -10 -9 -------- Run | Scr Mat Min Mat Damage Taken 353 | . 176 146 31 Core 111 | . 45 35 31 Absorbed by Shields . | . . . . Core Remaining (%) 84 | 100 . 68 . Volleys Fired 22 | . 11 11 . Largest 2 | . 2 2 . Hottest 60 | . 60 50 . Shots Fired 41 | . 22 19 . Gun 25 | . 14 11 . Cannon . | . . . . Launcher 16 | . 8 8 . Special . | . . . . Kinetic 22 | . 11 11 . Thermal 3 | . 3 . . Explosive 16 | . 8 8 . Electromagnetic . | . . . . Robot Hit Streak 4 | . 4 4 . Robot Miss Streak 2 | . 2 2 . Penetration Max . | . . . . Secondary Targets . | . . . . Shots Hit Robots 24 | . 11 13 . Core Hits 19 | . 10 9 . Critical Hits . | . . . . Critical Kills . | . . . . Critical Parts Destroyed . | . . . . Melee Attacks . | . . . . Impact . | . . . . Slashing . | . . . . Piercing . | . . . . Sneak Attacks . | . . . . Combat Hostiles . | . . . . Follow-up Attacks . | . . . . Damage Inflicted 1300 | . 647 653 . Guns 186 | . 103 83 . Cannons . | . . . . Explosions 1114 | . 544 570 . Melee . | . . . . Ramming . | . . . . Kinetic 176 | . 93 83 . Thermal 10 | . 10 . . Explosive 1114 | . 544 570 . Electromagnetic . | . . . . Impact . | . . . . Slashing . | . . . . Piercing . | . . . . Highest Corruption . | . . . . Average Corruption . | . . . . Corruption Purged . | . . . . Overload Shots . | . . . . Overflow Damage 37 | . 29 8 . Projectiles . | . . . . Explosions 37 | . 29 8 . Melee . | . . . . Knockbacks . | . . . . Impact . | . . . . Kinetic . | . . . . Secondary . | . . . . Self-Inflicted Damage 124 | . 105 19 . Shots 6 | . 4 2 . Rammed . | . . . . Targets Rammed . | . . . . Kicked . | . . . . Crushed . | . . . . Highest Temperature 5 | . 2 5 . Average Temperature 2 | . 2 2 . Received Heat Transfer 78 | . 18 51 9 Siege Activations . | . . . . Robots Corrupted . | . . . . Combat Hostiles . | . . . . Parts Fried . | . . . . Impact Corruptions . | . . . . Robots Melted . | . . . . Combat Hostiles . | . . . . Parts Melted . | . . . . Heat Transferred 25 | . 25 . . Parts Sabotaged . | . . . . Parts Stolen . | . . . . Parts Stripped . | . . . . Power Chain Reactions . | . . . . Missiles Intercepted . | . . . . Alert | -11 -10 -10 -9 ------- Run | Scr Mat Min Mat Peak Influence 328 | . 240 328 142 Initial 127 | . . 93 127 Average 96 | . 73 227 127 Maximum Alert Level 1 | . 1 1 . Low Security (%) 82 | 100 86 50 100 Level 1 17 | . 13 49 . Level 2 . | . . . . Level 3 . | . . . . Level 4 . | . . . . Level 5 . | . . . . High Security . | . . . . Max Security . | . . . . Squads Dispatched 2 | . 1 1 . Investigation 1 | . . 1 . Extermination . | . . . . Reinforcement 1 | . 1 . . Assault . | . . . . Garrison . | . . . . Intercept . | . . . . Construction Impeded . | . . . . Haulers Reinforced . | . . . . Stealth | -11 -10 -10 -9 --------- Run | Scr Mat Min Mat Distress Signals 1 | . 1 . . Communications Jammed . | . . . . Distress Signals . | . . . . Times Spotted 21 | . 13 7 1 Peak Tracking Total 7 | . 7 3 1 Tactical Retreats . | . . . . Traps | -11 -10 -10 -9 ------- Run | Scr Mat Min Mat Traps Triggered . | . . . . Indirectly . | . . . . Trap Hack Attempts . | . . . . Triggered . | . . . . Disarmed . | . . . . Reprogrammed . | . . . . Reused . | . . . . Traps Extracted . | . . . . Installed . | . . . . Triggered . | . . . . Machines | -11 -10 -10 -9 ---------- Run | Scr Mat Min Mat Machines Disabled 3 | . 1 2 . Max in Single Turn 1 | . 1 1 . Machines Sabotaged . | . . . . Garrisons Compromised . | . . . . Overloaded Fab Kills . | . . . . Fab Network Shutdowns . | . . . . Hacking | -11 -10 -10 -9 --------- Run | Scr Mat Min Mat Machines Accessed 1 | . . 1 . Terminals 1 | . . 1 . Fabricators . | . . . . Repair Stations . | . . . . Recycling Units . | . . . . Scanalyzers . | . . . . Garrison Access . | . . . . Total Hacks 4 | . . 4 . Successful . | . . . . Failed 4 | . . 4 . Catastrophic 2 | . . 2 . Database Lockouts . | . . . . Manual 5 | . . 5 . Terminals 4 | . . 4 . Fabricators . | . . . . Repair Stations . | . . . . Recycling Units . | . . . . Scanalyzers . | . . . . Garrison Access . | . . . . Terminal Hacks . | . . . . Fabricator Hacks . | . . . . Repair Station Hacks . | . . . . Recycling Unit Hacks . | . . . . Scanalyzer . | . . . . Garrison Access Hacks . | . . . . Unauthorized Hacks . | . . . . Terminals . | . . . . Fabricators . | . . . . Repair Stations . | . . . . Recycling Units . | . . . . Scanalyzers . | . . . . Garrison Access . | . . . . Data Cores Recovered . | . . . . Used . | . . . . Hacking Detections 1 | . . 1 . Full Trace Events 1 | . . 1 . Feedback Events . | . . . . Feedback Blocked . | . . . . Robot Schematics Acquired . | . . . . Robots Built . | . . . . Matter . | . . . . Time . | . . . . Total Robot Build Rating . | . . . . Part Schematics Acquired . | . . . . Parts Built . | . . . . Matter . | . . . . Time . | . . . . Total Part Build Rating . | . . . . Parts Repaired . | . . . . Time . | . . . . Parts Recycled . | . . . . Recycled Matter . | . . . . Retrieved Matter . | . . . . Retrieved Components . | . . . . Parts Scanalyzed . | . . . . Part Schematics Acquired . | . . . . Parts Damaged . | . . . . Bothacking | -11 -10 -10 -9 ------------ Run | Scr Mat Min Mat Used RIF Installer . | . . . . Robots Hacked . | . . . . Non-combat . | . . . . Combat . | . . . . Robot Hacks Applied . | . . . . Relay Couplers Released . | . . . . Robots Rewired . | . . . . Allies Hacked . | . . . . Hacks Repelled . | . . . . Allies | -11 -10 -10 -9 -------- Run | Scr Mat Min Mat Total Allies . | . . . . Largest Group . | . . . . Highest-Rated Group . | . . . . Highest-Rated Ally . | . . . . Total Orders . | . . . . Ally Attacks . | . . . . Total Damage . | . . . . Kills . | . . . . Allies Corrupted . | . . . . Allies Melted . | . . . . Intel | -11 -10 -10 -9 ------- Run | Scr Mat Min Mat Robot Analysis Total . | . . . . Derelict Logs Recovered . | . . . . Drone Launches . | . . . . Drone Recoveries . | . . . . Exploration | -11 -10 -10 -9 ------------- Run | Scr Mat Min Mat Turns Passed 453 | 97 223 104 29 Spaces Moved 299 | 68 145 62 24 Core 11 | 11 . . . Treads . | . . . . Legs 288 | 57 145 62 24 Wheels . | . . . . Hover . | . . . . Flight . | . . . . Fastest Speed 50 | 50 120 120 120 Average Speed 120 | 121 120 120 120 Slowest Speed 200 | 200 120 120 120 Overloaded Moves . | . . . . Propulsion Burnouts . | . . . . Robots Hopped . | . . . . Cave-ins Triggered . | . . . . Exploration Rate (%) 13 | 4 24 20 5 Regions Visited 3 Branch Regions 1 Pre-discovered Areas . | . . . . Known Exits Taken . | . . . . Unknown Exits Taken 3 | 1 1 1 . Scrap Searched . | . . . . Spaces Dug . | . . . . Terrain Destroyed 142 | . 67 75 . Melee . | . . . . Projectile . | . . . . AOE 142 | . 67 75 . Terrain Rammed . | . . . . Walls Destroyed . | . . . . Machines Disabled . | . . . . Actions | -11 -10 -10 -9 --------- Run | Scr Mat Min Mat Total 347 | 79 172 72 24 Wait 14 | . 14 . . Move 296 | 67 144 61 24 Hop . | . . . . Pick Up 7 | 6 1 . . Fast Attach 6 | 6 . . . Attach . | . . . . Detach . | . . . . Swap 1 | . 1 . . Drop 1 | . 1 . . Fire 22 | . 11 11 . Melee . | . . . . Ram . | . . . . Kick . | . . . . Crush . | . . . . Escape Stasis . | . . . . Rewire . | . . . . Trap . | . . . . Miscellaneous . | . . . . Route ------- -11/Scrapyard -10/Materials -10/Mines -9/Materials History --------- Turn | Location | Event 11 | -11/Scrapyard | Discovered new exit (range 16) 98 | -11/Scrapyard | Entered Materials 303 | -10/Materials | Discovered new exit (range 15) 313 | -10/Materials | Build established: Mutant 321 | -10/Materials | Entered Mines 380 | -10/Mines | Met a Derelict bent on vengeance 408 | -10/Mines | Discovered new exit (range 15) 425 | -10/Mines | Entered Materials 425 | -9/Materials | Evolved 2 slots: Power x1, Utility x1 454 | -9/Materials | Self-destructed Last Messages --------------- 00374_ ALERT: Suspicious activity at Terminal M002. Dispatching Investigation squad. 00374_ S-10 Pest destroyed. 00374_ Destroyed Flight Unit. 00374_ S-10 Pest destroyed. 00380_ Destroyed Lgt. Ion Engine. 00380_ S-10 Pest destroyed. 00380_ Core Extractor disabled. 00382_ The unstable cave ceiling collapses. 00386_ G-34 Mercenary destroyed. 00392_ The unstable cave ceiling collapses. 00402_ G-34 Mercenary destroyed. 00407_ U-05 Engineer builds a Wall. 00408_ EXIT=FOUND 00415_ U-05 Engineer lays Concrete. 00416_ Acquired 3 matter. 00421_ The unstable cave ceiling collapses. PARAMETERS=POWER_1,UTILITY_1 LOCATION=UNKNOWN GOAL=ESCAPE Map ----- +----------------------------------------------------+ | | | ?????????????????????????????????????? | | ?????????????????????????????????????? | | ?????????????????????????????????????? | | ?????????????????????????????????????? | | ?????????????????????????????????????? | | ??????????????###########+####???????? | | ??????????????# #???????? | | ??????????????# #???????? | | ??????????????# #???????? | | ??????????????####+####### #???????? | | ???????????????# #??????????????? | | ???????????????#! #??????????????? | | ???????????????# """ #??????????????? | | ???????????????# """ #??????????????? | | ???????????????# """ #??????????????? | | ???????????????# #??????????????? | | ???????????????#####+##??????????????? | | ???????????????????# #???????????????? | | ???????????????????# #???????????????? | | ???????????######### ##### """??????? | | ???????????# """?????? | | ???????????# ??? | | ???????????# ??? | | ?????????####/################### ???? | | ?????????# @ #??????????????????? | | ?????????# """ #??????????????????? | | ????????#Y """ #??????????????????? | | ????????## """ #??????????????????? | | ?????????# #??????????????????? | | ?????????# """ #??????????????????? | | ?????????# """ #??????????????????? | | ?????????# ???? #??????????????????? | | ?????????# ????????????????????????? | | ?????????####????????????????????????? | | ?????????????????????????????????????? | | ?????????????????????????????????????? | | ?????????????????????????????????????? | | ?????????????????????????????????????? | | ?????????????????????????????????????? | | ?????????????????????????????????????? | | ?????????????????????????????????????? | | ?????????????????????????????????????? | | ?????????????????????????????????????? | | ?????????????????????????????????????? | | ?????????????????????????????????????? | | ?????????????????????????????????????? | | ?????????????????????????????????????? | | ?????????????????????????????????????? | | ?????????????????????????????????????? | +----------------------------------------------------+ Best States ------------- Heat Dissipation 28 Energy Generation 10 Energy Capacity 125 Matter Stores 258 Matter Capacity 300 Sight Range 16 Terrain Scan Density 10 Evasion (%) 40 Item Schematics ----------------- None Robot Schematics ------------------ None Fabricated ------------ Nothing Alien Tech Used ----------------- None Achievements -------------- None Challenges ------------ None Game ------ Seed CouplerHellfireAxe Manual? 0 Play Time 00:08:21 Cumulative 21.2 hours Start 2022.01.01 @ 19:46:28 End 2022.01.01 @ 20:00:01 Sessions 1 Manual Loads 0 Difficulty Rogue Special Mode None Game No. 21 Rogue 21 Adventurer 0 Explorer 0 Win Type - Total 0 Types 0/0/0/0/0/0/0/0/0 Lore% 28 Gallery% 23 Achievement% 21 Wizard Run 0 Options --------- ASCII 0 Keyboard 0 Movement Arrows Keybinds 0 Fullscreen 1 Font 18/SmallcapsGlow Map View 76x50 Tactical HUD 1 Map Filters NONE Filters NONE Steam 1 RUN: 0d0e0ba6-7a3d-45b4-b609-96f6638ab78f